[Event "XXVII RUS-chT Premier 2020"]
[Site "Sochi"]
[Date "2020.11.19"]
[Round "1.29"]
[White "Potkin, Vladimir"]
[Black "Alexeev, Alexey"]
[Result "1/2-1/2"]
[ECO "D45"]
[WhiteElo "2583"]
[BlackElo "2246"]
[Annotator "ChessBase"]
[PlyCount "100"]
[EventDate "2020.11.19"]
[EventType "team-tourn"]
[EventCountry "RUS"]
[SourceTitle "playchess.com"]
[Source "ChessBase"]
[SourceQuality "1"]
[TimeControl "40/5400+30:1800+30"]

1. Nf3 {[%emt 0:00:00]} d5 {[%emt 0:00:00]} 2. e3 {[%emt 0:00:00]} Nf6 {[%emt 0:00:31]} 3. c4 {[%emt 0:00:00]} c6 {[%emt 0:00:08]} 4. Nc3 {[%emt 0:00:12]} a6 {[%emt 0:01:19]} 5. d4 {[%emt 0:00:18]} e6 {[%emt 0:00:09]} 6. b3 {[%emt 0:01:00]} Bb4 {[%emt 0:00:10]} 7. Bd2 {[%emt 0:00:09]} Nbd7 {[%emt 0:00:23]} 8. Bd3 {[%emt 0:00:08]} O-O {[%emt 0:00:13]} 9. O-O {[%emt 0:00:06]} Bd6 {[%emt 0:00:08]} 10. Re1 {[%emt 0:06:18]} Re8 {[%emt 0:05:18]} 11. Qc2 {[%emt 0:05:01]} h6 {[%emt 0:04:43]} 12. h3 {[%emt 0:05:04]} e5 {[%emt 0:02:12]} 13. cxd5 {[%emt 0:00:59]} cxd5 {[%emt 0:00:20]} 14. e4 {[%emt 0:01:45]} dxe4 {[%emt 0:02:56]} 15. Nxe4 {[%emt 0:00:08]} Nxe4 {[%emt 0:00:29]} 16. Bxe4 {[%emt 0:01:27]} exd4 {[%emt 0:03:59]} 17. Bh7+ {[%emt 0:13:36]} Kh8 {[%emt 0:01:37]} 18. Rxe8+ {[%emt 0:00:11]} Qxe8 {[%emt 0:00:07]} 19. Re1 {[%emt 0:00:03]} Qf8 {[%emt 0:10:26]} 20. Nxd4 {[%emt 0:07:44]} Nf6 {[%emt 0:00:52]} 21. Bf5 {[%emt 0:03:07]} Bc5 {[%emt 0:11:15]} 22. Bc3 {[%emt 0:07:14]} Bxd4 {[%emt 0:05:37]} 23. Bxd4 {[%emt 0:00:11]} Qb4 {[%emt 0:00:24]} 24. Rd1 {[%emt 0:11:07]} Bxf5 {[%emt 0:03:06]} 25. Qxf5 {[%emt 0:00:05]} Rd8 {[%emt 0:01:03]} 26. Qf4 {[%emt 0:02:20]} Kg8 {[%emt 0:12:21]} 27. Rd2 {[%emt 0:01:53]} Rd5 {[%emt 0:08:06]} 28. Be3 {[%emt 0:05:03]} Qxf4 {[%emt 0:05:59]} 29. Bxf4 {[%emt 0:00:43]} Rxd2 {[%emt 0:00:59]} 30. Bxd2 {[%emt 0:00:01]} Ne4 {[%emt 0:00:53]} 31. Bb4 {[%emt 0:01:59]} f5 {[%emt 0:04:39]} 32. f3 {[%emt 0:05:16]} Nf6 {[%emt 0:00:11]} 33. g4 {[%emt 0:04:04]} fxg4 {[%emt 0:01:38]} 34. fxg4 {[%emt 0:00:44]} Kf7 {[%emt 0:01:04]} 35. Kf2 {[%emt 0:00:54]} h5 {[%emt 0:02:45]} 36. gxh5 {[%emt 0:07:06]} Nxh5 {[%emt 0:00:18]} 37. Kf3 {[%emt 0:01:34]} Nf6 {[%emt 0:01:08]} 38. Bd2 {[%emt 0:00:11]} Ke6 {[%emt 0:01:22]} 39. Bc3 {[%emt 0:00:51]} g6 {[%emt 0:02:32]} 40. Bxf6 {[%emt 0:00:00]} Kxf6 {[%emt 0:00:00]} 41. Kf4 {[%emt 0:14:00]} a5 {[%emt 0:10:01]} 42. h4 {[%emt 0:03:00]} b6 {[%emt 0:03:42]} 43. Ke4 {[%emt 0:08:55]} Ke6 {[%emt 0:00:30]} 44. a3 {[%emt 0:04:39]} Kd6 {[%emt 0:00:48]} 45. Kf4 {[%emt 0:00:39]} Ke6 {[%emt 0:00:31]} 46. Kg5 {[%emt 0:00:09]} Kf7 {[%emt 0:00:10]} 47. Kg4 {[%emt 0:09:08]} Kf6 {[%emt 0:00:49]} 48. Kf4 {[%emt 0:00:06]} Ke6 {[%emt 0:00:07]} 49. Ke4 {[%emt 0:00:35]} Kd6 {[%emt 0:00:24]} 50. Kd4 {[%emt 0:00:46]} Ke6 {[%emt 0:00:39]} 1/2-1/2

[Event "XXVII RUS-chT Premier 2020"]
[Site "Sochi"]
[Date "2020.11.19"]
[Round "1.30"]
[White "Linker, Mikhail"]
[Black "Kornev, Alexei"]
[Result "0-1"]
[ECO "E09"]
[WhiteElo "2269"]
[BlackElo "2515"]
[Annotator "ChessBase"]
[PlyCount "164"]
[EventDate "2020.11.19"]
[EventType "team-tourn"]
[EventCountry "RUS"]
[SourceTitle "playchess.com"]
[Source "ChessBase"]
[SourceQuality "1"]
[TimeControl "40/5400+30:1800+30"]

1. Nf3 {[%emt 0:00:00]} Nf6 {[%emt 0:01:37]} 2. c4 {[%emt 0:00:20]} e6 {[%emt 0:02:49]} 3. g3 {[%emt 0:02:16]} d5 {[%emt 0:02:01]} 4. Bg2 {[%emt 0:01:47]} Be7 {[%emt 0:00:52]} 5. O-O {[%emt 0:00:59]} O-O {[%emt 0:00:08]} 6. d4 {[%emt 0:03:17]} Nbd7 {[%emt 0:02:52]} 7. Nbd2 {[%emt 0:03:20]} c6 {[%emt 0:00:30]} 8. Qc2 {[%emt 0:01:32]} b6 {[%emt 0:00:15]} 9. b3 {[%emt 0:02:49]} Bb7 {[%emt 0:01:07]} 10. Bb2 {[%emt 0:02:36]} Rc8 {[%emt 0:00:44]} 11. Rad1 {[%emt 0:02:55]} c5 {[%emt 0:08:15]} 12. Qb1 {[%emt 0:12:32]} dxc4 {[%emt 0:05:54]} 13. Nxc4 {[%emt 0:01:04]} b5 {[%emt 0:06:02]} 14. Nce5 {[%emt 0:05:24]} Be4 {[%emt 0:05:24]} 15. Qa1 {[%emt 0:04:20]} c4 {[%emt 0:02:47]} 16. bxc4 {[%emt 0:04:29]} bxc4 {[%emt 0:00:09]} 17. Rc1 {[%emt 0:02:22]} Nb6 {[%emt 0:04:46]} 18. Nd2 {[%emt 0:04:44]} Bxg2 {[%emt 0:01:19]} 19. Kxg2 {[%emt 0:00:04]} Qd5+ {[%emt 0:03:48]} 20. f3 {[%emt 0:04:06]} Qb5 {[%emt 0:04:25]} 21. e4 {[%emt 0:04:25]} Rfd8 {[%emt 0:06:20]} 22. Bc3 {[%emt 0:05:37]} Qa6 {[%emt 0:04:38]} 23. Rc2 {[%emt 0:03:07]} Na4 {[%emt 0:06:38]} 24. Rf2 {[%emt 0:01:38]} Ne8 {[%emt 0:05:33]} 25. Ndxc4 {[%emt 0:10:00]} Rxc4 {[%emt 0:06:14]} 26. Nxc4 {[%emt 0:00:05]} Qxc4 {[%emt 0:00:34]} 27. Ba5 {[%emt 0:03:17]} Qxd4 {[%emt 0:00:54]} 28. Qxd4 {[%emt 0:02:11]} Rxd4 {[%emt 0:00:18]} 29. Rc8 {[%emt 0:00:04]} Kf8 {[%emt 0:00:12]} 30. Rfc2 {[%emt 0:01:10]} Nb6 {[%emt 0:03:19]} 31. Bxb6 {[%emt 0:08:25]} axb6 {[%emt 0:00:07]} 32. Ra8 {[%emt 0:00:42]} Rd8 {[%emt 0:02:04]} 33. Ra7 {[%emt 0:00:45]} Bc5 {[%emt 0:02:16]} 34. a4 {[%emt 0:01:37]} Be3 {[%emt 0:04:00]} 35. e5 {[%emt 0:00:52]} b5 {[%emt 0:02:38]} 36. Ra5 {[%emt 0:00:16]} bxa4 {[%emt 0:01:14]} 37. Rxa4 {[%emt 0:00:03]} g5 {[%emt 0:01:16]} 38. h4 {[%emt 0:01:26]} h6 {[%emt 0:00:45]} 39. hxg5 {[%emt 0:00:25]} hxg5 {[%emt 0:00:02]} 40. g4 {[%emt 0:00:00]} Rd2+ {[%emt 0:00:00]} 41. Rxd2 {[%emt 0:05:48]} Bxd2 {[%emt 0:01:07]} 42. Rc4 {[%emt 0:02:07]} Bf4 {[%emt 0:01:07]} 43. Rc5 {[%emt 0:01:33]} Ke7 {[%emt 0:00:44]} 44. Kf2 {[%emt 0:01:13]} Kd7 {[%emt 0:00:10]} 45. Ke2 {[%emt 0:00:17]} Nc7 {[%emt 0:00:14]} 46. Kd3 {[%emt 0:00:13]} Nd5 {[%emt 0:00:12]} 47. Ke4 {[%emt 0:00:40]} Ne7 {[%emt 0:00:14]} 48. Rb5 {[%emt 0:03:01]} Kc6 {[%emt 0:05:25]} 49. Rb8 {[%emt 0:05:20]} Ng6 {[%emt 0:00:30]} 50. Rc8+ {[%emt 0:00:28]} Kb7 {[%emt 0:00:20]} 51. Rc2 {[%emt 0:06:31]} Nxe5 {[%emt 0:00:35]} 52. Rc5 {[%emt 0:00:21]} Nc6 {[%emt 0:01:12]} 53. Rb5+ {[%emt 0:02:37]} Kc7 {[%emt 0:00:15]} 54. Rb1 {[%emt 0:00:09]} Kd7 {[%emt 0:02:59]} 55. Rb7+ {[%emt 0:01:40]} Ke8 {[%emt 0:01:18]} 56. Rb5 {[%emt 0:00:24]} Kf8 {[%emt 0:01:10]} 57. Rb6 {[%emt 0:01:32]} Ne7 {[%emt 0:02:49]} 58. Ra6 {[%emt 0:01:26]} Kg7 {[%emt 0:00:23]} 59. Ra7 {[%emt 0:00:37]} Nd5 {[%emt 0:00:58]} 60. Rb7 {[%emt 0:00:46]} Nf6+ {[%emt 0:02:10]} 61. Kd3 {[%emt 0:00:17]} e5 {[%emt 0:04:36]} 62. Rb5 {[%emt 0:02:57]} e4+ {[%emt 0:00:42]} 63. Ke2 {[%emt 0:00:33]} Nd7 {[%emt 0:01:05]} 64. fxe4 {[%emt 0:01:16]} Ne5 {[%emt 0:00:09]} 65. Rb6 {[%emt 0:00:16]} Nxg4 {[%emt 0:00:06]} 66. Kf3 {[%emt 0:00:11]} Ne5+ {[%emt 0:00:06]} 67. Kg2 {[%emt 0:00:09]} g4 {[%emt 0:00:17]} 68. Rb5 {[%emt 0:01:11]} Kg6 {[%emt 0:00:14]} 69. Rb8 {[%emt 0:00:27]} Kg7 {[%emt 0:03:21]} 70. Rb5 {[%emt 0:00:22]} f6 {[%emt 0:01:13]} 71. Rb7+ {[%emt 0:02:00]} Kg6 {[%emt 0:00:10]} 72. Rb8 {[%emt 0:00:10]} Nc4 {[%emt 0:01:46]} 73. Rb5 {[%emt 0:02:09]} Ne3+ {[%emt 0:00:14]} 74. Kf2 {[%emt 0:00:21]} g3+ {[%emt 0:00:55]} 75. Kg1 {[%emt 0:00:04]} Be5 {[%emt 0:00:25]} 76. Kh1 {[%emt 0:01:21]} Kg5 {[%emt 0:00:10]} 77. Kg1 {[%emt 0:00:08]} Kf4 {[%emt 0:00:09]} 78. Rb4 {[%emt 0:00:06]} Bc3 {[%emt 0:00:31]} 79. Ra4 {[%emt 0:00:32]} Kf3 {[%emt 0:00:10]} 80. Kh1 {[%emt 0:00:35]} Be1 {[%emt 0:00:15]} 81. e5 {[%emt 0:00:27]} g2+ {[%emt 0:00:22]} 82. Kh2 {[%emt 0:00:04]} Bg3+ {[%emt 0:00:06]} 0-1

[Event "XXVII RUS-chT Premier 2020"]
[Site "Sochi"]
[Date "2020.11.20"]
[Round "2.2"]
[White "Kardashevskiy, Evgeny"]
[Black "Sakaev, Konstantin"]
[Result "1/2-1/2"]
[ECO "E32"]
[WhiteElo "2436"]
[BlackElo "2612"]
[Annotator "ChessBase"]
[PlyCount "81"]
[EventDate "2020.11.19"]
[EventType "team-tourn"]
[EventCountry "RUS"]
[SourceTitle "playchess.com"]
[Source "ChessBase"]
[SourceQuality "1"]
[TimeControl "40/5400+30:1800+30"]

1. d4 {[%emt 0:00:00]} Nf6 {[%emt 0:00:00]} 2. c4 {[%emt 0:00:00]} e6 {[%emt 0:00:00]} 3. Nc3 {[%emt 0:00:00]} Bb4 {[%emt 0:00:23]} 4. Qc2 {[%emt 0:00:19]} O-O {[%emt 0:01:51]} 5. e4 {[%emt 0:00:47]} d6 {[%emt 0:02:41]} 6. e5 {[%emt 0:00:23]} Nfd7 {[%emt 0:05:12]} 7. Nf3 {[%emt 0:00:59]} h6 {[%emt 0:08:53]} 8. Be3 {[%emt 0:12:23]} dxe5 {[%emt 0:10:11]} 9. dxe5 {[%emt 0:02:28]} Nc6 {[%emt 0:00:42]} 10. Rd1 {[%emt 0:13:18]} Qe7 {[%emt 0:15:02]} 11. a3 {[%emt 0:03:57]} Bxc3+ {[%emt 0:04:22]} 12. Qxc3 {[%emt 0:02:06]} b6 {[%emt 0:01:52]} 13. h4 {[%emt 0:15:10]} Bb7 {[%emt 0:04:18]} 14. Bd3 {[%emt 0:02:45]} f6 {[%emt 0:07:17]} 15. exf6 {[%emt 0:03:47]} Nxf6 {[%emt 0:00:38]} 16. Bc2 {[%emt 0:04:46]} Rad8 {[%emt 0:05:46]} 17. O-O {[%emt 0:02:55]} Qf7 {[%emt 0:02:33]} 18. Ne5 {[%emt 0:09:55]} Nxe5 {[%emt 0:12:22]} 19. Qxe5 {[%emt 0:00:14]} Ng4 {[%emt 0:00:11]} 20. Qg3 {[%emt 0:00:57]} Nxe3 {[%emt 0:00:05]} 21. fxe3 {[%emt 0:05:15]} Rxd1 {[%emt 0:00:53]} 22. Rxd1 {[%emt 0:00:09]} Bc6 {[%emt 0:03:06]} 23. Bd3 {[%emt 0:08:52]} e5 {[%emt 0:03:11]} 24. Rf1 {[%emt 0:01:16]} Qe7 {[%emt 0:01:13]} 25. Rxf8+ {[%emt 0:00:38]} Kxf8 {[%emt 0:00:11]} 26. Qg6 {[%emt 0:00:54]} Qf6 {[%emt 0:02:24]} 27. Qxf6+ {[%emt 0:00:51]} gxf6 {[%emt 0:00:05]} 28. Kf2 {[%emt 0:01:01]} Ke7 {[%emt 0:00:09]} 29. g3 {[%emt 0:00:49]} Bb7 {[%emt 0:01:41]} 30. Ke1 {[%emt 0:00:30]} Kd6 {[%emt 0:00:15]} 31. Kd2 {[%emt 0:00:28]} c5 {[%emt 0:00:16]} 32. Bf5 {[%emt 0:01:07]} a5 {[%emt 0:00:10]} 33. Kc3 {[%emt 0:00:58]} Bc6 {[%emt 0:00:08]} 34. Kd2 {[%emt 0:00:16]} Bb7 {[%emt 0:00:05]} 35. Kc3 {[%emt 0:00:04]} Bc6 {[%emt 0:00:05]} 36. Kd2 {[%emt 0:00:03]} Bb7 {[%emt 0:00:06]} 37. Kc3 {[%emt 0:00:02]} Bc6 {[%emt 0:00:05]} 38. Kd2 {[%emt 0:00:02]} Bb7 {[%emt 0:00:06]} 39. Kc3 {[%emt 0:00:03]} Bc6 {[%emt 0:00:05]} 40. Kd2 {[%emt 0:00:00]} Bb7 {[%emt 0:00:00]} 41. Kc3 {[%emt 0:00:05]} 1/2-1/2

[Event "XXVII RUS-chT Premier 2020"]
[Site "Sochi"]
[Date "2020.11.20"]
[Round "2.3"]
[White "Khairullin, Ildar"]
[Black "Musalov, Ruslan"]
[Result "1-0"]
[ECO "C65"]
[WhiteElo "2618"]
[BlackElo "2348"]
[Annotator "ChessBase"]
[PlyCount "49"]
[EventDate "2020.11.19"]
[EventType "team-tourn"]
[EventCountry "RUS"]
[SourceTitle "playchess.com"]
[Source "ChessBase"]
[SourceQuality "1"]
[TimeControl "40/5400+30:1800+30"]

1. e4 {[%emt 0:00:00]} e5 {[%emt 0:00:04]} 2. Nf3 {[%emt 0:00:00]} Nc6 {[%emt 0:00:13]} 3. Bb5 {[%emt 0:00:00]} Nf6 {[%emt 0:00:10]} 4. d3 {[%emt 0:00:00]} Ne7 {[%emt 0:03:21]} 5. Bc4 {[%emt 0:02:05]} c6 {[%emt 0:03:02]} 6. Nc3 {[%emt 0:00:14]} Ng6 {[%emt 0:02:02]} 7. d4 {[%emt 0:21:35]} b5 {[%emt 0:49:08]} 8. dxe5 {[%emt 0:04:12]} bxc4 {[%emt 0:03:06]} 9. exf6 {[%emt 0:00:07]} Qxf6 {[%emt 0:00:13]} 10. Bg5 {[%emt 0:15:01]} Qe6 {[%emt 0:03:11]} 11. O-O {[%emt 0:09:50]} f6 {[%emt 0:12:28]} 12. Be3 {[%emt 0:06:27]} Ne5 {[%emt 0:02:46]} 13. Nd4 {[%emt 0:00:19]} Qg4 {[%emt 0:00:09]} 14. Qd2 {[%emt 0:14:28]} Bb4 {[%emt 0:01:45]} 15. f4 {[%emt 0:00:30]} Nf7 {[%emt 0:08:12]} 16. Rf3 {[%emt 0:06:36]} Nd6 {[%emt 0:00:19]} 17. e5 {[%emt 0:05:31]} Nf5 {[%emt 0:04:27]} 18. exf6 {[%emt 0:04:07]} gxf6 {[%emt 0:00:34]} 19. Qe2 {[%emt 0:00:39]} Nh4 {[%emt 0:01:37]} 20. Bf2+ {[%emt 0:00:29]} Kd8 {[%emt 0:01:47]} 21. Bxh4 {[%emt 0:00:45]} Qxh4 {[%emt 0:00:04]} 22. Rd1 {[%emt 0:01:53]} Kc7 {[%emt 0:01:32]} 23. Qxc4 {[%emt 0:00:11]} Ba5 {[%emt 0:00:34]} 24. Nd5+ {[%emt 0:01:58]} Kb7 {[%emt 0:00:20]} 25. Nf5 {[%emt 0:00:22]} 1-0

[Event "XXVII RUS-chT Premier 2020"]
[Site "Sochi"]
[Date "2020.11.20"]
[Round "2.4"]
[White "Truskavetsky, Alexandr"]
[Black "Ponkratov, Pavel"]
[Result "1/2-1/2"]
[ECO "A49"]
[WhiteElo "2399"]
[BlackElo "2625"]
[Annotator "ChessBase"]
[PlyCount "82"]
[EventDate "2020.11.19"]
[EventType "team-tourn"]
[EventCountry "RUS"]
[SourceTitle "playchess.com"]
[Source "ChessBase"]
[SourceQuality "1"]
[TimeControl "40/5400+30:1800+30"]

1. d4 {[%emt 0:00:00]} Nf6 {[%emt 0:00:00]} 2. Nf3 {[%emt 0:00:00]} g6 {[%emt 0:01:47]} 3. g3 {[%emt 0:00:28]} Bg7 {[%emt 0:00:05]} 4. Bg2 {[%emt 0:00:07]} O-O {[%emt 0:00:08]} 5. O-O {[%emt 0:00:17]} d5 {[%emt 0:00:05]} 6. c4 {[%emt 0:00:43]} Nc6 {[%emt 0:00:43]} 7. cxd5 {[%emt 0:11:31]} Nxd5 {[%emt 0:00:06]} 8. e4 {[%emt 0:00:23]} Nb6 {[%emt 0:00:07]} 9. d5 {[%emt 0:00:28]} Na5 {[%emt 0:00:33]} 10. Nc3 {[%emt 0:01:39]} c6 {[%emt 0:00:17]} 11. Bf4 {[%emt 0:18:05]} cxd5 {[%emt 0:09:48]} 12. exd5 {[%emt 0:01:37]} Nac4 {[%emt 0:00:31]} 13. Qe2 {[%emt 0:02:30]} Bg4 {[%emt 0:08:36]} 14. Rac1 {[%emt 0:06:19]} Rc8 {[%emt 0:01:13]} 15. h3 {[%emt 0:01:05]} Bxf3 {[%emt 0:09:44]} 16. Bxf3 {[%emt 0:03:38]} Nd6 {[%emt 0:00:36]} 17. Rfe1 {[%emt 0:10:47]} Bf6 {[%emt 0:11:29]} 18. Ne4 {[%emt 0:02:07]} Nxe4 {[%emt 0:01:35]} 19. Qxe4 {[%emt 0:00:35]} Rxc1 {[%emt 0:10:52]} 20. Rxc1 {[%emt 0:04:01]} Nc8 {[%emt 0:01:31]} 21. Qb4 {[%emt 0:07:37]} Nd6 {[%emt 0:00:18]} 22. Be3 {[%emt 0:09:42]} a5 {[%emt 0:04:36]} 23. Qb3 {[%emt 0:03:05]} h5 {[%emt 0:08:12]} 24. g4 {[%emt 0:01:35]} hxg4 {[%emt 0:01:35]} 25. hxg4 {[%emt 0:00:08]} Qd7 {[%emt 0:00:56]} 26. Qb6 {[%emt 0:01:08]} Rc8 {[%emt 0:02:05]} 27. Rxc8+ {[%emt 0:01:59]} Qxc8 {[%emt 0:00:06]} 28. b3 {[%emt 0:01:28]} Qc3 {[%emt 0:02:29]} 29. Kg2 {[%emt 0:01:33]} Kg7 {[%emt 0:01:06]} 30. Qc5 {[%emt 0:02:00]} Qe1 {[%emt 0:01:07]} 31. Qc7 {[%emt 0:00:49]} g5 {[%emt 0:05:53]} 32. Qc1 {[%emt 0:01:38]} Qxc1 {[%emt 0:00:22]} 33. Bxc1 {[%emt 0:00:02]} Nb5 {[%emt 0:00:09]} 34. Bd2 {[%emt 0:01:22]} b6 {[%emt 0:00:06]} 35. Be3 {[%emt 0:00:55]} Nd4 {[%emt 0:00:07]} 36. Bxd4 {[%emt 0:01:32]} Bxd4 {[%emt 0:00:05]} 37. a4 {[%emt 0:00:44]} Kf6 {[%emt 0:00:05]} 38. Be2 {[%emt 0:00:11]} Ke5 {[%emt 0:00:04]} 39. Bc4 {[%emt 0:00:11]} f6 {[%emt 0:00:03]} 40. f3 {[%emt 0:00:00]} Bc5 {[%emt 0:00:00]} 41. Kg3 {[%emt 0:00:21]} Bd6 {[%emt 0:00:09]} 1/2-1/2

[Event "XXVII RUS-chT Premier 2020"]
[Site "Sochi"]
[Date "2020.11.20"]
[Round "2.5"]
[White "Goganov, Aleksey"]
[Black "Alexeev, Alexey"]
[Result "1-0"]
[ECO "D44"]
[WhiteElo "2602"]
[BlackElo "2246"]
[Annotator "ChessBase"]
[PlyCount "53"]
[EventDate "2020.11.19"]
[EventType "team-tourn"]
[EventCountry "RUS"]
[SourceTitle "playchess.com"]
[Source "ChessBase"]
[SourceQuality "1"]
[TimeControl "40/5400+30:1800+30"]

1. d4 {[%emt 0:00:00]} d5 {[%emt 0:00:00]} 2. c4 {[%emt 0:00:00]} c6 {[%emt 0:00:00]} 3. Nf3 {[%emt 0:00:00]} Nf6 {[%emt 0:00:00]} 4. Nc3 {[%emt 0:00:00]} e6 {[%emt 0:00:20]} 5. Bg5 {[%emt 0:01:43]} dxc4 {[%emt 0:01:06]} 6. e4 {[%emt 0:00:13]} b5 {[%emt 0:00:17]} 7. e5 {[%emt 0:00:11]} h6 {[%emt 0:00:16]} 8. Bh4 {[%emt 0:00:07]} g5 {[%emt 0:00:37]} 9. Nxg5 {[%emt 0:00:26]} hxg5 {[%emt 0:00:19]} 10. Bxg5 {[%emt 0:00:04]} Nbd7 {[%emt 0:00:10]} 11. g3 {[%emt 0:01:07]} Qb6 {[%emt 0:00:28]} 12. exf6 {[%emt 0:00:06]} Bb7 {[%emt 0:00:25]} 13. Bg2 {[%emt 0:00:06]} O-O-O {[%emt 0:01:04]} 14. O-O {[%emt 0:00:06]} c5 {[%emt 0:01:09]} 15. d5 {[%emt 0:00:06]} b4 {[%emt 0:03:03]} 16. Rb1 {[%emt 0:05:50]} Qa6 {[%emt 0:01:20]} 17. dxe6 {[%emt 0:07:48]} Bxg2 {[%emt 0:04:18]} 18. e7 {[%emt 0:00:43]} Bxe7 {[%emt 0:08:57]} 19. fxe7 {[%emt 0:00:15]} Rdg8 {[%emt 0:00:09]} 20. Kxg2 {[%emt 0:04:32]} Qe6 {[%emt 0:16:31]} 21. h4 {[%emt 0:11:27]} f6 {[%emt 0:14:46]} 22. Re1 {[%emt 0:02:17]} Qc6+ {[%emt 0:08:01]} 23. Qd5 {[%emt 0:00:10]} Kb7 {[%emt 0:07:43]} 24. Qxc6+ {[%emt 0:00:14]} Kxc6 {[%emt 0:00:07]} 25. Re6+ {[%emt 0:00:04]} Kb7 {[%emt 0:00:22]} 26. Ne4 {[%emt 0:00:15]} fxg5 {[%emt 0:00:16]} 27. e8=Q {[%emt 0:00:16]} 1-0

[Event "XXVII RUS-chT Premier 2020"]
[Site "Sochi"]
[Date "2020.11.20"]
[Round "2.6"]
[White "Linker, Mikhail"]
[Black "Shimanov, Aleksandr"]
[Result "0-1"]
[ECO "B08"]
[WhiteElo "2269"]
[BlackElo "2593"]
[Annotator "ChessBase"]
[PlyCount "104"]
[EventDate "2020.11.19"]
[EventType "team-tourn"]
[EventCountry "RUS"]
[SourceTitle "playchess.com"]
[Source "ChessBase"]
[SourceQuality "1"]
[TimeControl "40/5400+30:1800+30"]

1. d4 {[%emt 0:00:00]} g6 {[%emt 0:00:21]} 2. e4 {[%emt 0:01:52]} d6 {[%emt 0:01:09]} 3. Nf3 {[%emt 0:01:42]} Nf6 {[%emt 0:01:19]} 4. Nc3 {[%emt 0:00:08]} Bg7 {[%emt 0:00:15]} 5. Be2 {[%emt 0:00:46]} O-O {[%emt 0:00:27]} 6. h3 {[%emt 0:01:10]} a6 {[%emt 0:03:17]} 7. a4 {[%emt 0:01:32]} Nc6 {[%emt 0:05:13]} 8. Be3 {[%emt 0:01:59]} b6 {[%emt 0:02:11]} 9. O-O {[%emt 0:06:42]} Bb7 {[%emt 0:01:32]} 10. d5 {[%emt 0:05:49]} Nb4 {[%emt 0:01:42]} 11. Nd4 {[%emt 0:02:51]} c6 {[%emt 0:02:20]} 12. dxc6 {[%emt 0:01:01]} Nxc6 {[%emt 0:00:06]} 13. Nb3 {[%emt 0:03:42]} Rc8 {[%emt 0:03:46]} 14. f4 {[%emt 0:08:23]} Nd7 {[%emt 0:09:55]} 15. Bf3 {[%emt 0:14:40]} Nc5 {[%emt 0:01:57]} 16. Re1 {[%emt 0:06:58]} Nb4 {[%emt 0:15:35]} 17. Nxc5 {[%emt 0:11:22]} bxc5 {[%emt 0:06:26]} 18. Rb1 {[%emt 0:03:38]} Nc6 {[%emt 0:12:50]} 19. Ne2 {[%emt 0:01:17]} e5 {[%emt 0:00:30]} 20. c3 {[%emt 0:04:17]} exf4 {[%emt 0:02:26]} 21. Nxf4 {[%emt 0:00:12]} Ne5 {[%emt 0:01:40]} 22. Nd5 {[%emt 0:02:54]} Re8 {[%emt 0:04:25]} 23. Rf1 {[%emt 0:03:44]} Qh4 {[%emt 0:02:34]} 24. Qe2 {[%emt 0:06:15]} Bxd5 {[%emt 0:05:53]} 25. exd5 {[%emt 0:00:08]} Nc4 {[%emt 0:04:31]} 26. Bg5 {[%emt 0:00:20]} Rxe2 {[%emt 0:00:36]} 27. Bxh4 {[%emt 0:00:01]} Rxb2 {[%emt 0:00:06]} 28. Rxb2 {[%emt 0:01:22]} Nxb2 {[%emt 0:00:33]} 29. Be2 {[%emt 0:07:13]} Nxa4 {[%emt 0:01:36]} 30. Bxa6 {[%emt 0:00:08]} Ra8 {[%emt 0:00:29]} 31. Bb7 {[%emt 0:01:08]} Rb8 {[%emt 0:00:16]} 32. Bc6 {[%emt 0:00:06]} Nxc3 {[%emt 0:00:09]} 33. Re1 {[%emt 0:00:19]} Rb1 {[%emt 0:03:04]} 34. Rxb1 {[%emt 0:00:37]} Nxb1 {[%emt 0:00:03]} 35. Bg3 {[%emt 0:00:36]} Bf8 {[%emt 0:04:48]} 36. Kf2 {[%emt 0:00:46]} Nd2 {[%emt 0:00:22]} 37. Ke2 {[%emt 0:00:31]} Nc4 {[%emt 0:01:56]} 38. Kd3 {[%emt 0:00:37]} Ne5+ {[%emt 0:01:21]} 39. Bxe5 {[%emt 0:01:16]} dxe5 {[%emt 0:00:04]} 40. Ke4 {[%emt 0:00:00]} Bd6 {[%emt 0:00:00]} 41. g4 {[%emt 0:05:15]} Kg7 {[%emt 0:01:08]} 42. Be8 {[%emt 0:05:55]} Kf6 {[%emt 0:02:34]} 43. h4 {[%emt 0:03:06]} Ke7 {[%emt 0:08:04]} 44. Bb5 {[%emt 0:00:42]} h5 {[%emt 0:02:44]} 45. gxh5 {[%emt 0:00:41]} f5+ {[%emt 0:00:26]} 46. Ke3 {[%emt 0:00:10]} gxh5 {[%emt 0:00:10]} 47. Be2 {[%emt 0:00:08]} Kf6 {[%emt 0:00:22]} 48. Bxh5 {[%emt 0:01:02]} e4 {[%emt 0:00:18]} 49. Bd1 {[%emt 0:01:36]} Ke5 {[%emt 0:00:37]} 50. Bb3 {[%emt 0:00:08]} f4+ {[%emt 0:00:17]} 51. Ke2 {[%emt 0:03:10]} Kd4 {[%emt 0:02:08]} 52. h5 {[%emt 0:00:13]} Bf8 {[%emt 0:01:11]} 0-1

[Event "XXVII RUS-chT Premier 2020"]
[Site "Sochi"]
[Date "2020.11.20"]
[Round "2.14"]
[White "Shubin, Kirill"]
[Black "Timofeev, Artyom"]
[Result "1/2-1/2"]
[ECO "B06"]
[WhiteElo "2441"]
[BlackElo "2585"]
[Annotator "ChessBase"]
[PlyCount "81"]
[EventDate "2020.11.19"]
[EventType "team-tourn"]
[EventCountry "RUS"]
[SourceTitle "playchess.com"]
[Source "ChessBase"]
[SourceQuality "1"]
[TimeControl "40/5400+30:1800+30"]

1. e4 {[%emt 0:00:00]} g6 {[%emt 0:00:00]} 2. d4 {[%emt 0:00:00]} Bg7 {[%emt 0:00:00]} 3. Nf3 {[%emt 0:00:04]} d6 {[%emt 0:01:56]} 4. Nc3 {[%emt 0:02:40]} c6 {[%emt 0:02:54]} 5. Be3 {[%emt 0:03:13]} b5 {[%emt 0:04:26]} 6. Qd2 {[%emt 0:03:11]} Nd7 {[%emt 0:03:33]} 7. Bd3 {[%emt 0:10:56]} Nb6 {[%emt 0:06:23]} 8. h3 {[%emt 0:04:04]} a5 {[%emt 0:08:50]} 9. O-O {[%emt 0:02:48]} Nf6 {[%emt 0:06:21]} 10. Bh6 {[%emt 0:03:56]} O-O {[%emt 0:02:11]} 11. Bxg7 {[%emt 0:00:54]} Kxg7 {[%emt 0:00:08]} 12. e5 {[%emt 0:02:59]} dxe5 {[%emt 0:04:32]} 13. dxe5 {[%emt 0:00:28]} Nfd5 {[%emt 0:01:09]} 14. Nxd5 {[%emt 0:04:17]} Qxd5 {[%emt 0:00:33]} 15. Qe3 {[%emt 0:00:48]} Qd8 {[%emt 0:20:49]} 16. Be4 {[%emt 0:11:53]} Qc7 {[%emt 0:04:09]} 17. Qc5 {[%emt 0:08:19]} Ba6 {[%emt 0:02:42]} 18. b3 {[%emt 0:04:52]} Nd7 {[%emt 0:03:38]} 19. Qxc6 {[%emt 0:00:32]} Qa7 {[%emt 0:00:13]} 20. Qc3 {[%emt 0:10:29]} b4 {[%emt 0:01:24]} 21. Qd4 {[%emt 0:00:06]} Bxf1 {[%emt 0:08:29]} 22. Bxa8 {[%emt 0:00:04]} Qxd4 {[%emt 0:02:08]} 23. Nxd4 {[%emt 0:00:22]} Rxa8 {[%emt 0:01:52]} 24. Kxf1 {[%emt 0:02:25]} Nxe5 {[%emt 0:00:08]} 25. Re1 {[%emt 0:00:08]} Kf6 {[%emt 0:00:11]} 26. f4 {[%emt 0:06:17]} Nd7 {[%emt 0:00:17]} 27. a3 {[%emt 0:01:15]} bxa3 {[%emt 0:07:51]} 28. Ra1 {[%emt 0:00:10]} a4 {[%emt 0:00:20]} 29. Rxa3 {[%emt 0:00:15]} axb3 {[%emt 0:00:41]} 30. Rxb3 {[%emt 0:00:02]} Ra4 {[%emt 0:00:31]} 31. Ne2 {[%emt 0:00:11]} Nc5 {[%emt 0:00:52]} 32. Re3 {[%emt 0:00:12]} h5 {[%emt 0:02:55]} 33. g3 {[%emt 0:00:23]} e6 {[%emt 0:00:17]} 34. Kg2 {[%emt 0:00:21]} Ke7 {[%emt 0:01:15]} 35. Kf3 {[%emt 0:00:09]} Kd6 {[%emt 0:00:38]} 36. Rc3 {[%emt 0:01:54]} Ra1 {[%emt 0:02:09]} 37. Rc4 {[%emt 0:01:30]} Rf1+ {[%emt 0:00:19]} 38. Kg2 {[%emt 0:00:11]} Ra1 {[%emt 0:00:51]} 39. Kf3 {[%emt 0:00:08]} Ra3+ {[%emt 0:00:15]} 40. Rc3 {[%emt 0:00:00]} Ra4 {[%emt 0:00:00]} 41. Re3 {[%emt 0:00:45]} 1/2-1/2